bitfinex-derivatives/quotes_BTCF0:USTF0_20250218
["timestamp","ask_amount","ask_price","bid_price","bid_amount"]
[1739905520790,0.2204355,93741.0,93739.0,0.3217]
[1739905521299,0.2134355,93741.0,93739.0,0.26859495]
[1739905521797,0.2204355,93741.0,93739.0,0.26859495]
[1739905522101,0.213444,93737.0,93736.0,0.04421904]
[1739905522398,0.3608,93740.0,93714.0,0.2134947]
[1739905522699,0.2134727,93725.0,93719.0,0.3196]
[1739905522892,0.2134745,93724.0,93719.0,0.3196]
[1739905523096,0.3744745,93724.0,93719.0,0.3196]
[1739905523400,0.3744745,93724.0,93719.0,0.36378914]
[1739905523601,0.2134784,93722.0,93719.0,0.36378914]
[1739905524302,0.006,93724.0,93720.0,0.30769495]
[1739905524495,0.006,93724.0,93720.0,0.46429495]
[1739905524686,0.006,93724.0,93720.0,0.1566]
[1739905525003,0.11872,93726.0,93720.0,0.1566]
[1739905525193,0.006,93722.0,93720.0,0.1566]
[1739905526504,0.006,93722.0,93720.0,0.3700818]
[1739905526690,0.2134256,93746.0,93721.0,0.3608]
[1739905526891,0.3608,93758.0,93720.0,0.1566]
[1739905526892,0.3608,93750.0,93736.0,0.13031135]
[1739905527086,0.2134354,93741.0,93737.0,0.4578]
[1739905527296,0.2134375,93740.0,93737.0,0.4578]
[1739905527594,0.2134375,93740.0,93737.0,0.40469495]
[1739905527794,0.49111135,93750.0,93737.0,0.40469495]
[1739905527795,0.3608,93738.0,93737.0,0.40469495]
[1739905528002,0.3608,93738.0,93737.0,0.25749495]
[1739905528198,0.3608,93738.0,93737.0,0.1518]
[1739905528401,0.3608,93738.0,93729.0,0.00016004]
[1739905528703,0.2134518,93734.0,93731.0,0.1518]
[1739905529297,0.3608,93738.0,93731.0,0.1518]
[1739905529505,0.11872,93738.0,93731.0,0.1518]
[1739905529993,0.2134536,93733.0,93731.0,0.1518]
[1739905530193,0.3109,93732.0,93731.0,0.001]
[1739905530395,0.3109,93732.0,93720.0,0.09975499]
[1739905530701,0.2124786,93722.0,93720.0,0.26155499]
[1739905530901,0.1615,93721.0,93720.0,0.09975499]
[1739905531512,0.1605,93721.0,93720.0,0.09975499]
[1739905532205,0.5742692,93726.0,93722.0,0.2134778]
[1739905532206,0.3608,93726.0,93722.0,0.2134778]
[1739905532704,0.3008,93732.0,93722.0,0.2134778]
[1739905532900,0.2134668,93727.0,93720.0,0.10075499]
[1739905533099,0.2134668,93727.0,93723.0,0.2134748]
[1739905533303,0.2134668,93727.0,93724.0,0.3177]
[1739905533601,0.2204704,93726.0,93724.0,0.26459495]
[1739905533797,0.3662704,93726.0,93724.0,0.26459495]
[1739905533994,0.3592704,93726.0,93724.0,0.26459495]
[1739905534994,0.3592704,93726.0,93724.0,0.1593]
[1739905535493,0.2134796,93722.0,93720.0,0.001]
[1739905535703,0.11872,93723.0,93719.0,0.04595888]
[1739905535903,0.2124827,93720.0,93711.0,0.1541]
[1739905536103,0.2124827,93720.0,93712.0,0.2134995]
[1739905536304,0.359385,93719.0,93712.0,0.2134995]
[1739905536504,0.213488,93718.0,93712.0,0.2134995]
[1739905536695,0.213488,93718.0,93712.0,0.25857596]
[1739905536896,0.213488,93718.0,93712.0,0.04507646]
[1739905537107,0.212488,93718.0,93714.0,0.2134963]
[1739905537606,0.218488,93718.0,93714.0,0.2134963]
[1739905537795,0.2134986,93713.0,93712.0,0.001]
[1739905537995,0.3608,93715.0,93694.0,0.1541]
[1739905538192,0.3608,93701.0,93694.0,0.1541]
[1739905538396,0.693046,93701.0,93694.0,0.1541]
[1739905538606,0.574326,93701.0,93694.0,0.1541]
[1739905539201,0.573326,93701.0,93694.0,0.1541]
[1739905539412,0.3598,93701.0,93700.0,0.14464127]
[1739905539597,0.573326,93701.0,93700.0,0.09153622]
[1739905539797,0.576326,93701.0,93700.0,0.09153622]
[1739905540199,0.58025713,93701.0,93700.0,0.09153622]
[1739905541802,0.007,93701.0,93700.0,0.09153622]
[1739905542008,0.1459,93719.0,93700.0,0.09153622]
[1739905542009,0.1459,93719.0,93712.0,0.2134993]
[1739905542208,0.303,93719.0,93713.0,0.2998]
[1739905542398,0.2134945,93715.0,93714.0,0.1479]
[1739905542607,0.2134945,93715.0,93713.0,0.2998]
[1739905542999,0.303,93719.0,93713.0,0.2998]
[1739905543299,0.42168,93719.0,93713.0,0.5132983]
[1739905543499,0.31,93719.0,93713.0,0.5132983]
[1739905543699,0.31,93719.0,93714.0,0.2134952]
[1739905544007,0.007,93715.0,93714.0,0.2134952]
[1739905545401,0.2134749,93724.0,93720.0,0.2134813]
[1739905545602,0.2134749,93724.0,93720.0,0.16037625]
[1739905545800,0.2134749,93724.0,93720.0,0.52117625]
[1739905546003,0.2134749,93724.0,93720.0,0.3608]
[1739905546309,0.2134749,93724.0,93722.0,0.2134779]
[1739905546901,0.2204749,93724.0,93722.0,0.2134779]
[1739905547210,0.2204749,93724.0,93714.0,0.1588]
[1739905547211,0.007,93724.0,93720.0,0.3608]
[1739905547503,0.2134777,93723.0,93720.0,0.3608]
[1739905548409,0.2134777,93723.0,93722.0,0.001]
[1739905548609,0.2134777,93723.0,93720.0,0.30869495]
[1739905549113,0.2204777,93723.0,93720.0,0.30969495]
[1739905549708,0.007,93723.0,93720.0,0.001]
[1739905550010,0.2134804,93721.0,93720.0,0.001]
[1739905551309,0.12568,93723.0,93720.0,0.2144827]
[1739905551508,0.007,93723.0,93722.0,0.2134781]
[1739905551813,0.5199,93726.0,93723.0,0.2134752]
[1739905552018,0.5199,93726.0,93724.0,0.2134727]
[1739905552507,0.2134804,93721.0,93720.0,0.001]
[1739905552703,0.11864,93725.0,93718.0,0.2134868]
[1739905552908,0.2134846,93720.0,93719.0,0.213483]
[1739905553714,0.2134846,93720.0,93719.0,0.25919891]
[1739905554416,0.2134846,93720.0,93719.0,0.04571591]
[1739905554714,0.5269,93726.0,93714.0,0.1588]
[1739905554915,0.5269,93726.0,93720.0,0.2134822]
[1739905555115,0.5199,93726.0,93720.0,0.2134822]
[1739905555300,0.2134827,93720.0,93719.0,0.04702866]
[1739905555614,0.2134827,93720.0,93719.0,0.04602866]
[1739905555815,0.2204827,93720.0,93719.0,0.2134849]
[1739905556215,0.2134827,93720.0,93719.0,0.2134849]
[1739905557717,0.2134827,93720.0,93719.0,0.1602583]
[1739905558019,0.2204827,93720.0,93719.0,0.20691498]
[1739905558222,0.007,93720.0,93719.0,0.20691498]
[1739905558517,0.3608,93742.0,93727.0,0.2134667]
[1739905558706,0.2134583,93731.0,93727.0,0.2134667]
[1739905558902,0.2134599,93730.0,93727.0,0.2134667]
[1739905559103,0.2134509,93734.0,93727.0,0.2134667]
[1739905559414,0.3608,93758.0,93726.0,0.4732]
[1739905559603,0.3608,93758.0,93741.0,0.3608]
[1739905559805,0.1186,93757.0,93744.0,0.3608]
[1739905560013,0.2134257,93745.0,93744.0,0.3608]
[1739905560316,0.2134117,93752.0,93742.0,0.318]
[1739905560621,0.2134117,93752.0,93747.0,0.2134206]
[1739905560812,0.2134176,93749.0,93742.0,0.4782049]
[1739905561006,0.2134218,93747.0,93743.0,0.2134297]
[1739905561208,0.1477,93748.0,93738.0,0.00016004]
[1739905561403,0.3608,93739.0,93738.0,0.00016004]
[1739905562217,0.517,93739.0,93738.0,0.00016004]
[1739905562718,0.524,93739.0,93738.0,0.00116004]
[1739905563401,0.2134644,93728.0,93727.0,0.0016001]
[1739905563606,0.5742644,93728.0,93727.0,0.0016001]
[1739905563811,0.5742644,93728.0,93720.0,0.1073735]
[1739905564016,0.1483,93727.0,93720.0,0.4674554]
[1739905564221,0.1483,93727.0,93721.0,0.2134799]
[1739905564516,0.1483,93727.0,93722.0,0.2134774]
[1739905565019,0.3617672,93727.0,93722.0,0.2134774]
[1739905565319,0.3607672,93727.0,93722.0,0.2134774]
[1739905565511,0.2134718,93725.0,93722.0,0.2134774]
[1739905565705,0.2134718,93725.0,93722.0,0.2144774]
[1739905566813,0.2134718,93725.0,93722.0,0.1612508]
[1739905567413,0.1465,93726.0,93722.0,0.001]
[1739905567414,0.2134754,93724.0,93722.0,0.001]
[1739905569307,0.006,93724.0,93722.0,0.001]
[1739905569510,0.12456,93724.0,93722.0,0.214478]
[1739905569820,0.1465,93726.0,93720.0,0.2007469]
[1739905570009,0.006,93724.0,93723.0,0.2134745]
[1739905570515,0.006,93724.0,93723.0,0.3675745]
[1739905571720,0.2134463,93736.0,93723.0,0.1541]
[1739905572019,0.2134463,93736.0,93732.0,0.2134553]
[1739905572219,0.2134493,93735.0,93732.0,0.2134553]
[1739905572423,0.2134524,93734.0,93732.0,0.2134553]
[1739905572612,0.5143524,93734.0,93732.0,0.2134553]
[1739905572815,0.2134734,93725.0,93723.0,0.001]
[1739905573119,0.2134804,93721.0,93720.0,0.1466]
[1739905573320,0.2124804,93721.0,93720.0,0.1466]
[1739905573722,0.2124804,93721.0,93719.0,0.04669611]
[1739905573919,0.3608,93720.0,93712.0,0.1487]
[1739905574113,0.8751848,93720.0,93714.0,0.2134957]
[1739905574423,0.8751848,93720.0,93712.0,0.1487]
[1739905574424,0.2134713,93725.0,93712.0,0.19448961]
[1739905574821,0.1544,93727.0,93691.0,0.00088]
[1739905575022,0.053383,93699.0,93683.0,0.31932782]
[1739905575325,0.7216,93684.0,93683.0,0.31932782]
[1739905575523,0.7206,93684.0,93683.0,0.36467131]
[1739905576018,0.7206,93684.0,93683.0,0.31144471]
[1739905576019,0.7196,93684.0,93683.0,0.31144471]
[1739905576618,0.7266,93684.0,93683.0,0.31244471]
[1739905578529,0.7266,93684.0,93683.0,0.04634349]
[1739905578827,0.7196,93684.0,93683.0,0.04534349]
[1739905579018,0.7196,93684.0,93682.0,0.20568489]
[1739905579526,0.7266,93684.0,93682.0,0.20568489]
[1739905579921,0.7196,93684.0,93682.0,0.20568489]
[1739905580227,0.7266,93684.0,93682.0,0.25068362]
[1739905580818,0.7266,93684.0,93682.0,0.04499873]
[1739905581119,0.7266,93684.0,93675.0,0.1495]
[1739905581320,0.3608,93676.0,93675.0,0.1495]
[1739905581926,0.3608,93676.0,93675.0,0.3053]
[1739905582126,0.3608,93676.0,93675.0,0.29919762]
[1739905582427,0.3608,93676.0,93675.0,0.14339762]
[1739905582627,0.3678,93676.0,93675.0,0.04712422]
[1739905582832,0.3678,93676.0,93666.0,0.2136055]
[1739905583028,0.3608,93667.0,93666.0,0.34391685]
[1739905583329,0.2136158,93662.0,93660.0,0.0016016]
[1739905583530,0.3608,93661.0,93660.0,0.0016016]
[1739905585114,0.3608,93661.0,93659.0,0.1619948]
[1739905585319,0.3608,93661.0,93660.0,0.1488]
[1739905585522,0.3608,93661.0,93660.0,0.19486627]
[1739905586022,0.3668,93661.0,93660.0,0.19486627]
[1739905586829,0.3678,93661.0,93660.0,0.40848567]
[1739905588130,0.3678,93661.0,93660.0,0.3568316]
[1739905588735,0.007,93661.0,93660.0,0.3568316]
[1739905589030,0.3608,93681.0,93675.0,0.2135852]
[1739905589230,0.3608,93681.0,93675.0,0.21515773]
[1739905590218,0.5743717,93681.0,93675.0,0.21515773]
[1739905590424,0.3608,93681.0,93675.0,0.21515773]
[1739905591133,0.3608,93681.0,93675.0,0.16193113]
[1739905591627,0.00616013,93676.0,93675.0,0.16293113]
[1739905592034,0.00016013,93676.0,93675.0,0.16193113]
[1739905592234,0.00616013,93676.0,93675.0,0.16293113]
[1739905592733,0.00516013,93676.0,93675.0,0.16293113]
[1739905592926,0.3598,93681.0,93680.0,0.2135738]
[1739905593329,0.3598,93681.0,93680.0,0.21514633]
[1739905594234,0.3598,93681.0,93680.0,0.16191973]
[1739905594829,0.3608,93692.0,93680.0,0.00157253]
[1739905595034,0.3608,93692.0,93691.0,0.2135487]
[1739905595531,0.2135066,93710.0,93691.0,0.00157253]
[1739905595532,0.3608,93710.0,93691.0,0.00157253]
[1739905595737,0.5743062,93710.0,93704.0,0.2135181]
[1739905596039,0.57446633,93710.0,93704.0,0.2135181]
[1739905596230,0.36096013,93710.0,93704.0,0.04684631]
[1739905596436,0.21194427,93705.0,93699.0,0.2135293]
[1739905596637,0.3608,93700.0,93699.0,0.2135293]
[1739905597436,0.3608,93700.0,93699.0,0.1603027]
[1739905597832,0.3608,93700.0,93699.0,0.20671192]
[1739905598539,0.36396013,93710.0,93699.0,0.04640922]
[1739905598831,0.36396013,93710.0,93709.0,0.2135077]
[1739905599033,0.36096013,93710.0,93709.0,0.2135077]
[1739905599837,0.00316013,93710.0,93709.0,0.2135077]
[1739905600138,0.3608,93718.0,93717.0,0.2134895]
[1739905600333,0.3608,93718.0,93717.0,0.1602629]
[1739905600926,0.3608,93718.0,93709.0,0.3104]
[1739905601238,0.2134957,93715.0,93709.0,0.2135065]
[1739905601638,0.3608,93710.0,93709.0,0.2135065]
[1739905602548,0.3608,93710.0,93700.0,0.13031135]
[1739905602746,0.3618,93710.0,93709.0,0.001]
[1739905603043,0.001,93710.0,93709.0,0.001]
[1739905603240,0.001,93710.0,93709.0,0.2145056]
[1739905603540,0.001,93710.0,93709.0,0.001]
[1739905603731,0.2135043,93711.0,93700.0,0.13031135]
[1739905603933,0.001,93710.0,93709.0,0.001]
[1739905604339,0.2135043,93711.0,93705.0,0.2135162]
[1739905604636,0.002,93710.0,93709.0,0.001]
[1739905605135,0.6706,93710.0,93709.0,0.001]
[1739905605335,0.8297,93710.0,93709.0,0.001]
[1739905605834,0.8277,93710.0,93699.0,0.04674815]
[1739905606038,0.3608,93708.0,93701.0,0.2135249]
[1739905606237,0.3608,93708.0,93706.0,0.2135138]
[1739905606438,0.3608,93708.0,93706.0,0.1602872]
[1739905606736,0.3598,93708.0,93707.0,0.1507]
[1739905607638,0.3608,93708.0,93707.0,0.1507]
[1739905608432,0.001,93708.0,93707.0,0.1507]
[1739905609133,0.3618,93708.0,93707.0,0.1507]
[1739905609338,0.3628,93708.0,93707.0,0.001]
[1739905609639,0.3628,93708.0,93706.0,0.2135124]
[1739905609935,0.3628,93708.0,93707.0,0.001]
[1739905610436,0.5123,93708.0,93698.0,0.13031135]
[1739905610631,0.5133,93708.0,93707.0,0.001]
[1739905611438,0.72681,93708.0,93707.0,0.2145123]
[1739905612033,0.72881,93708.0,93707.0,0.2145123]
[1739905612538,0.5123,93708.0,93698.0,0.13031135]
[1739905612741,0.3598,93700.0,93699.0,0.2135305]
[1739905613337,0.003,93708.0,93707.0,0.2135123]
[1739905613642,0.3608,93709.0,93698.0,0.13031135]
[1739905613842,0.002,93708.0,93707.0,0.2135123]
[1739905615340,0.004,93700.0,93699.0,0.2145305]
[1739905615646,0.004,93700.0,93699.0,0.1613039]
[1739905615844,0.5743078,93709.0,93708.0,0.21351]
[1739905616145,0.3608,93709.0,93708.0,0.21351]
[1739905618640,0.3648,93709.0,93708.0,0.1612834]
[1739905619151,0.3608,93709.0,93708.0,0.1602834]
[1739905619347,0.004,93709.0,93708.0,0.1612834]
[1739905619847,0.2134942,93715.0,93714.0,0.2134917]
[1739905620149,0.21349,93717.0,93716.0,0.2134872]
[1739905620448,0.152,93718.0,93708.0,0.001]
[1739905620638,0.5743077,93709.0,93708.0,0.001]
[1739905621045,0.3608,93709.0,93708.0,0.21451]
[1739905621550,0.5743077,93709.0,93708.0,0.1612834]
[1739905621950,0.5733077,93709.0,93708.0,0.1612834]
[1739905622654,0.5773077,93709.0,93708.0,0.1622834]
[1739905623054,0.3598,93709.0,93708.0,0.1612834]
[1739905623244,0.3648,93709.0,93708.0,0.1622834]
[1739905624555,0.3648,93709.0,93708.0,0.1090568]
[1739905624757,0.3658,93709.0,93708.0,0.1090568]
[1739905625252,0.3658,93709.0,93708.0,0.1080568]
[1739905625458,0.3658,93709.0,93708.0,0.1090568]
[1739905625655,0.5793077,93709.0,93708.0,0.1090568]
[1739905625861,0.5733077,93709.0,93708.0,0.1080568]
[1739905626156,0.5773077,93709.0,93708.0,0.1090568]
[1739905626758,0.5773077,93709.0,93695.0,0.1497]
[1739905626759,0.3638,93709.0,93695.0,0.1497]
[1739905626960,0.2135374,93696.0,93695.0,0.1497]
[1739905627160,0.2135465,93692.0,93680.0,1.06159135]
[1739905627374,0.2135465,93692.0,93681.0,0.1529]
[1739905627554,0.3149,93695.0,93687.0,0.16209089]
[1739905627755,0.5743562,93688.0,93681.0,0.1529]
[1739905627960,0.5743562,93688.0,93681.0,0.20744832]
[1739905628260,0.2135593,93687.0,93686.0,0.213558]
[1739905628563,0.2125593,93687.0,93686.0,0.213558]
[1739905628759,0.3608,93688.0,93681.0,0.20744832]
[1739905628965,0.3608,93688.0,93687.0,0.2135579]
[1739905629163,0.3658,93688.0,93687.0,0.2135579]
[1739905629362,0.3658,93688.0,93681.0,0.20744832]
[1739905629563,0.2135693,93682.0,93681.0,0.05454832]
[1739905629761,0.2135784,93678.0,93677.0,0.00016013]
[1739905629969,0.3608,93678.0,93677.0,0.00016013]
[1739905630162,0.3608,93678.0,93677.0,0.26700704]
[1739905630662,0.3608,93678.0,93677.0,0.05326621]
[1739905630867,0.2135854,93675.0,93664.0,0.2136103]
[1739905631063,0.2135854,93675.0,93660.0,0.64871135]
[1739905631269,0.2135854,93675.0,93673.0,0.24560712]
[1739905631465,0.2125854,93675.0,93673.0,0.24560712]
[1739905632458,0.2155854,93675.0,93673.0,0.05434532]
[1739905632774,0.2155854,93675.0,93669.0,0.2135982]
[1739905632973,0.3608,93670.0,93669.0,0.2135982]
[1739905633676,0.3608,93670.0,93666.0,0.09447435]
[1739905633866,0.2136035,93667.0,93666.0,0.05453764]
[1739905634174,0.2136035,93667.0,93665.0,0.00016013]
[1739905634375,0.5122,93666.0,93665.0,0.00016013]
[1739905634572,0.6306,93666.0,93665.0,0.00016013]
[1739905635071,0.2136212,93660.0,93650.0,0.1319128]
[1739905635271,0.3608,93653.0,93651.0,0.2136387]
[1739905635571,0.2136377,93652.0,93650.0,0.00160145]
[1739905635771,0.2136377,93652.0,93650.0,0.05620315]
[1739905635969,0.3598,93653.0,93650.0,0.00160145]
[1739905636375,0.3598,93653.0,93652.0,0.2136377]
[1739905636577,0.3598,93653.0,93650.0,0.00160145]
[1739905636874,0.2136389,93652.0,93647.0,0.2136477]
[1739905637063,0.2136389,93652.0,93647.0,0.26670492]
[1739905637265,0.2136468,93648.0,93647.0,0.05305722]
[1739905637463,0.2136468,93648.0,93642.0,0.1593]
[1739905637671,0.2136468,93648.0,93638.0,0.13031135]
[1739905637672,0.3608,93643.0,93638.0,0.13031135]
[1739905638068,0.3608,93643.0,93640.0,0.09031638]
[1739905638273,0.3608,93643.0,93640.0,0.03774014]
[1739905639172,0.2136605,93642.0,93640.0,0.03774014]
[1739905639478,0.5181605,93642.0,93640.0,0.03774014]
[1739905639867,0.3045,93642.0,93630.0,0.2606227]
[1739905640066,0.3608,93643.0,93641.0,0.2136622]
[1739905640671,0.3608,93643.0,93632.0,0.149]
[1739905641075,0.3608,93643.0,93639.0,0.2136651]
[1739905641272,0.3608,93643.0,93632.0,0.149]
[1739905641577,0.3608,93643.0,93640.0,0.2136645]
[1739905641770,0.2136637,93641.0,93633.0,0.2136795]
[1739905641970,0.3618,93643.0,93633.0,0.2136795]
[1739905642165,0.3618,93643.0,93632.0,0.0547133]
[1739905642166,0.2136791,93634.0,93632.0,0.0547133]
[1739905642367,0.2136791,93634.0,93630.0,0.25659817]
[1739905642677,0.2136847,93632.0,93630.0,0.25659817]
[1739905642875,0.2136847,93632.0,93630.0,0.20337157]
[1739905643075,0.2136847,93632.0,93630.0,0.05268193]
[1739905643378,0.2136699,93638.0,93629.0,0.3608]
[1739905643574,0.2136879,93630.0,93629.0,0.41410203]
[1739905643877,0.2136924,93628.0,93627.0,0.20337157]
[1739905644569,0.3608,93630.0,93627.0,0.25552962]
[1739905644774,0.2136924,93628.0,93627.0,0.25552962]
[1739905645376,0.3608,93630.0,93627.0,0.25552962]
[1739905645768,0.3608,93630.0,93629.0,0.2136902]
[1739905645972,0.3608,93630.0,93629.0,0.1604636]
[1739905646471,0.00016013,93640.0,93639.0,0.2136673]
[1739905646879,0.00016013,93640.0,93633.0,0.2136795]
[1739905647174,0.3608,93634.0,93627.0,0.05215805]
[1739905647383,0.2136958,93627.0,93621.0,0.2137078]
[1739905647679,0.2136958,93627.0,93622.0,0.213706]
[1739905648070,0.2137015,93625.0,93622.0,0.213706]
[1739905648272,0.4442,93633.0,93625.0,0.2136981]
[1739905648468,0.007,93627.0,93626.0,0.213697]
[1739905648977,0.007,93627.0,93626.0,0.1604704]
[1739905649582,0.213697,93626.0,93625.0,0.19246437]
[1739905649776,0.007,93627.0,93626.0,0.213697]
[1739905649977,0.2206947,93627.0,93626.0,0.213697]
[1739905650886,0.007,93627.0,93626.0,0.213697]
[1739905651271,0.007,93626.0,93625.0,0.19246437]
[1739905651476,0.007,93626.0,93625.0,0.40616367]
[1739905651884,0.007,93627.0,93625.0,0.13923777]
[1739905652079,0.007,93627.0,93623.0,0.05609363]
[1739905652080,0.007,93627.0,93626.0,0.213697]
[1739905652485,0.2136926,93628.0,93626.0,0.213697]
[1739905652983,0.2137016,93624.0,93623.0,0.05609363]
[1739905653583,0.3608,93626.0,93625.0,0.2136993]
[1739905654181,0.574497,93626.0,93625.0,0.001]
[1739905654378,0.3608,93626.0,93623.0,0.00160174]
[1739905654688,0.0534373,93604.0,93580.0,0.13031135]
[1739905654875,0.3598,93581.0,93580.0,0.1605754]
[1739905655186,0.3608,93581.0,93580.0,0.05413034]
[1739905655385,0.2137802,93590.0,93578.0,0.2138054]
[1739905655582,0.3608,93581.0,93576.0,0.4490734]
[1739905655782,0.3608,93579.0,93576.0,0.4490734]
[1739905655989,0.3608,93579.0,93577.0,0.2138079]
[1739905656187,0.1136,93579.0,93577.0,0.2138079]
[1739905656386,0.3608,93595.0,93586.0,0.2137883]
[1739905656687,0.3608,93595.0,93576.0,0.4490734]
[1739905656688,0.3608,93587.0,93585.0,0.13031135]
[1739905656883,0.3608,93595.0,93592.0,0.2137746]
[1739905657090,0.001,93604.0,93592.0,0.3608]
[1739905657277,0.001,93604.0,93600.0,0.2137564]
[1739905657483,0.3608,93618.0,93603.0,0.3608]
[1739905657681,0.2137351,93610.0,93604.0,0.3608]
[1739905657883,0.3608,93618.0,93604.0,0.3608]
[1739905658089,0.3608,93618.0,93613.0,0.2137254]
[1739905658281,0.3608,93618.0,93614.0,0.1584]
[1739905659085,0.3678,93618.0,93606.0,0.00016021]
[1739905659287,0.3608,93607.0,93606.0,0.00016021]
[1739905660586,0.3598,93607.0,93606.0,0.00016021]
[1739905660989,0.3598,93607.0,93602.0,0.2137504]
[1739905661189,0.3598,93607.0,93597.0,0.13031135]
[1739905661492,0.3658,93607.0,93606.0,0.001]
[1739905662088,0.3668,93607.0,93602.0,0.152]
[1739905662490,0.2137479,93604.0,93602.0,0.001]
[1739905662999,0.3046,93603.0,93602.0,0.001]
[1739905663296,0.42304,93603.0,93602.0,0.001]
[1739905663592,0.42304,93603.0,93594.0,0.00160248]
[1739905663787,0.2137678,93595.0,93594.0,0.00160248]
[1739905663988,0.3608,93598.0,93590.0,0.07868723]
[1739905664188,0.3608,93598.0,93588.0,0.13031135]
[1739905664399,0.3598,93598.0,93588.0,0.13031135]
[1739905664693,0.2137727,93593.0,93588.0,0.13031135]
[1739905664888,0.3598,93598.0,93588.0,0.13031135]
[1739905665090,0.2137774,93591.0,93588.0,0.13031135]
[1739905665287,0.2137797,93590.0,93584.0,0.151]
[1739905665688,0.2137797,93590.0,93584.0,0.3647922]
[1739905665897,0.3638,93598.0,93584.0,0.151]
[1739905666088,0.11844,93597.0,93584.0,0.151]
[1739905666287,0.2137893,93586.0,93584.0,0.151]
[1739905666695,0.2137975,93582.0,93580.0,0.05358461]
[1739905666995,0.7216,93585.0,93567.0,0.32087547]
[1739905667195,0.2138093,93577.0,93570.0,0.17708475]
[1739905667396,0.4645,93584.0,93570.0,0.17708475]
[1739905667586,0.0001603,93583.0,93570.0,0.3073961]
[1739905667791,0.2137982,93582.0,93570.0,0.3073961]
[1739905667992,0.3608,93576.0,93575.0,0.2138118]
[1739905668300,0.0001603,93583.0,93582.0,0.2137975]
[1739905669899,0.2138026,93580.0,93573.0,0.13031135]
[1739905670096,0.3608,93574.0,93573.0,0.07708475]
[1739905670397,0.3608,93574.0,93570.0,0.0467734]
[1739905670698,0.3608,93574.0,93571.0,0.2138224]
[1739905670890,0.3608,93574.0,93572.0,0.213819]
[1739905671392,0.155,93582.0,93577.0,0.2138088]
[1739905671590,0.155,93582.0,93572.0,0.2138191]
[1739905671790,0.2138117,93576.0,93572.0,0.2138191]
[1739905671985,0.155,93582.0,93574.0,0.2138156]
[1739905672190,0.155,93582.0,93572.0,0.001]
[1739905672396,0.11844,93581.0,93580.0,0.2138018]
[1739905672592,0.0001603,93583.0,93582.0,0.2137975]
[1739905672788,0.0001603,93583.0,93574.0,0.3608]
[1739905672994,0.0001603,93583.0,93582.0,0.2137975]
[1739905673200,0.0001603,93583.0,93582.0,0.1605709]
[1739905673398,0.0001603,93583.0,93575.0,0.2138115]
[1739905673590,0.2138048,93579.0,93574.0,0.3608]
[1739905673791,0.0001603,93583.0,93574.0,0.3608]
[1739905673992,0.11844,93582.0,93574.0,0.3608]
[1739905674194,0.2138135,93575.0,93574.0,0.3608]
[1739905674493,0.2138135,93575.0,93574.0,0.3618]
[1739905674797,0.0001603,93583.0,93574.0,0.3618]
[1739905674993,0.2138005,93581.0,93574.0,0.3618]
[1739905675195,0.3608,93575.0,93570.0,0.0431734]
[1739905675500,1.0206,93571.0,93556.0,0.38511103]
[1739905675697,0.3608,93557.0,93542.0,0.05217364]
[1739905676007,0.3608,93543.0,93538.0,0.44929621]
[1739905676200,0.5736941,93540.0,93538.0,0.39606961]
[1739905676698,0.3598,93540.0,93538.0,0.39606961]
[1739905677295,0.5736936,93540.0,93538.0,0.39606961]
[1739905677494,0.3598,93540.0,93538.0,0.39606961]
[1739905677698,0.2078958,93539.0,93538.0,0.39606961]
[1739905678302,0.2078958,93539.0,93538.0,0.40306961]
[1739905678503,0.3608,93540.0,93538.0,0.40306961]
[1739905678807,0.3608,93540.0,93538.0,0.61696681]
[1739905678993,0.3608,93540.0,93539.0,0.3206]
[1739905679201,0.3608,93540.0,93539.0,0.2673734]
[1739905679497,0.3598,93540.0,93539.0,0.2673734]
[1739905680404,0.3598,93540.0,93530.0,0.19777859]
[1739905680608,0.3608,93532.0,93531.0,0.2139141]
[1739905682005,0.3608,93532.0,93525.0,0.35777609]
[1739905682200,0.3608,93527.0,93525.0,0.09062259]
[1739905682895,0.3608,93527.0,93526.0,0.2139255]
[1739905683208,0.3608,93527.0,93525.0,0.09062259]
[1739905684302,0.2139642,93510.0,93500.0,2.12248]
[1739905684502,0.2139642,93510.0,93509.0,0.0036]
[1739905684697,0.9355642,93510.0,93509.0,0.0036]
[1739905684898,0.7216,93510.0,93509.0,0.0036]
[1739905685099,0.84008,93510.0,93509.0,0.0036]
[1739905685305,0.84008,93510.0,93500.0,2.07357756]
[1739905685610,0.3608,93501.0,93500.0,2.07357756]
[1739905687298,0.3608,93510.0,93500.0,2.07357756]
[1739905687504,0.00016039,93519.0,93501.0,0.1568]
[1739905687704,0.19264919,93512.0,93509.0,0.19777859]
[1739905687900,0.32256555,93510.0,93502.0,0.19777859]
[1739905688099,0.19264919,93512.0,93507.0,0.213969]
[1739905688302,0.3608,93509.0,93500.0,2.02115096]
[1739905688510,0.3608,93501.0,93500.0,2.02035096]
[1739905690403,0.36072249,93501.0,93500.0,2.02035096]
[1739905690810,0.36072249,93501.0,93500.0,2.23433596]
[1739905691107,0.36172249,93501.0,93500.0,2.23433596]
[1739905691408,0.001,93501.0,93500.0,2.18110936]
[1739905692206,0.001,93501.0,93500.0,1.96712436]
[1739905693003,0.3618,93501.0,93500.0,1.96712436]
[1739905694408,0.3618,93501.0,93500.0,1.91389776]
[1739905694611,0.3608,93521.0,93518.0,0.2139438]
[1739905695307,0.3608,93521.0,93510.0,0.1522]
[1739905695513,0.3608,93511.0,93510.0,0.1522]
[1739905696706,0.48068,93511.0,93510.0,0.1522]
[1739905697408,0.48068,93511.0,93510.0,0.0989734]
[1739905697610,0.3608,93511.0,93510.0,0.0989734]
[1739905698314,0.3608,93511.0,93500.0,1.91469776]
[1739905698607,0.3608,93501.0,93500.0,1.91389776]
[1739905699712,0.3618,93511.0,93505.0,0.2139718]
[1739905699907,0.3618,93511.0,93506.0,0.1506]
[1739905700105,0.48212,93511.0,93506.0,0.1506]
[1739905700304,0.48212,93511.0,93500.0,1.91469776]
[1739905700509,0.3618,93501.0,93500.0,1.61267116]
[1739905700808,0.3618,93501.0,93500.0,1.02677116]
[1739905701111,0.3608,93501.0,93500.0,1.02677116]
[1739905701315,0.8798,93501.0,93500.0,0.57829814]
[1739905701612,0.8798,93501.0,93500.0,0.55581275]